bitfinex/quotes_ETHUSD_20251111
["timestamp","ask_amount","ask_price","bid_price","bid_amount"]
[1762858750247,0.0016,3561.9,3561.8,8.50640731]
[1762858750576,0.0016,3561.9,3561.8,7.97426778]
[1762858752234,0.0008,3561.9,3561.8,7.97426778]
[1762858754534,0.0008,3561.9,3561.8,7.52006778]
[1762858754833,0.0008,3561.9,3561.8,7.97426778]
[1762858756275,0.0008,3561.9,3561.8,7.52006778]
[1762858759539,0.9171,3561.9,3561.8,3.32653621]
[1762858759745,1.108,3561.9,3561.8,0.001]
[1762858761841,0.4563,3561.9,3561.8,3.2140732]
[1762858762078,0.0008,3561.9,3561.8,3.2140732]
[1762858762375,0.4635,3561.9,3561.8,0.406504]
[1762858763287,0.9243,3561.9,3561.8,0.406504]
[1762858768808,0.0008,3561.9,3561.8,3.6719732]
[1762858769122,0.0008,3561.9,3561.8,4.51544103]
[1762858770500,0.4609,3561.9,3561.8,4.05754103]
[1762858771253,0.0008,3561.9,3561.8,4.05754103]
[1762858772716,0.9243,3561.9,3561.8,4.05754103]
[1762858773458,0.0008,3561.9,3561.8,5.20196181]
[1762858773630,0.0008,3561.9,3561.8,5.67606181]
[1762858774117,0.0008,3561.9,3561.8,5.20196181]
[1762858774743,0.0008,3561.9,3561.8,5.67606181]
[1762858776126,0.002,3562.0,3561.9,2.80749038]
[1762858776423,0.002,3562.0,3561.9,3.74168738]
[1762858776829,0.002,3562.0,3561.9,4.38668738]
[1762858777049,0.002,3562.0,3561.9,4.86078738]
[1762858779048,0.002,3562.0,3561.9,4.38668738]
[1762858780743,0.002,3562.0,3561.9,3.92878738]
[1762858781844,0.4621,3562.0,3561.9,3.92878738]
[1762858782468,0.002,3562.0,3561.9,3.92878738]
[1762858782678,0.002,3562.0,3561.9,4.38668738]
[1762858783658,0.002,3562.0,3561.9,4.86078738]
[1762858786418,0.002,3562.4,3561.9,6.52600338]
[1762858786607,0.002,3562.7,3562.6,4.47215475]
[1762858786763,0.002,3562.7,3562.6,8.99056209]
[1762858786968,0.002,3562.7,3562.6,8.45998495]
[1762858787214,0.4741,3562.7,3562.6,7.38537295]
[1762858787537,0.4741,3562.7,3562.6,6.74237295]
[1762858787665,0.9375,3562.7,3562.6,6.74237295]
[1762858788015,0.9375,3562.7,3562.6,0.11242286]
[1762858788314,0.9375,3562.7,3562.3,0.84339432]
[1762858788821,0.4634,3562.6,3562.3,0.84339432]
[1762858789112,0.4634,3562.6,3562.4,0.405504]
[1762858789465,0.4721,3562.5,3562.4,0.405504]
[1762858789870,0.9355,3562.5,3562.4,0.405504]
[1762858790204,0.9355,3562.5,3562.4,3.21260033]
[1762858790505,0.9355,3562.5,3562.4,0.405504]
[1762858790703,0.9355,3562.5,3562.4,3.21260033]
[1762858790704,0.4721,3562.5,3562.4,3.21260033]
[1762858790868,0.9355,3562.5,3562.4,3.21260033]
[1762858792492,0.9355,3562.5,3562.4,0.405504]
[1762858793205,0.9355,3562.5,3562.4,3.21260033]
[1762858793771,0.4721,3562.5,3562.4,3.21260033]
[1762858794071,0.4654,3562.7,3562.6,2.80693875]
[1762858794484,0.4741,3562.7,3562.5,2.80699889]
[1762858794685,0.9375,3562.7,3562.5,2.80699889]
[1762858794882,0.002,3562.7,3562.5,3.21250289]
[1762858795084,0.0112,3562.9,3562.8,3.21228518]
[1762858795383,0.002,3563.2,3563.1,4.47176086]
[1762858795583,0.002,3563.2,3563.1,5.81386086]
[1762858795899,0.002,3563.2,3563.1,6.27656086]
[1762858796208,0.002,3563.2,3563.1,7.80730957]
[1762858797400,0.002,3563.2,3563.1,7.91970779]
[1762858800317,0.0012,3563.2,3563.1,7.91970779]
[1762858803633,0.01,3563.9,3563.8,4.4712096]
[1762858803797,0.01,3563.9,3563.8,9.77889301]
[1762858803996,0.01,3564.9,3564.8,0.405504]
[1762858804352,0.01,3564.9,3564.8,7.0986178]
[1762858804896,0.01,3564.9,3564.8,8.0673178]
[1762858805200,0.01,3564.9,3564.8,7.5974178]
[1762858805424,0.4912,3564.9,3564.8,4.32181134]
[1762858805623,1.1238,3564.9,3564.8,0.904304]
[1762858806019,0.6765,3564.9,3564.8,0.904304]
[1762858806335,1.1238,3564.9,3564.8,0.904304]
[1762858806502,1.1238,3564.9,3564.8,3.70951046]
[1762858807300,0.01,3564.9,3564.8,7.1270178]
[1762858807501,0.01,3564.9,3564.8,7.5974178]
[1762858807706,0.01,3564.9,3564.8,9.03288121]
[1762858808410,0.01,3564.9,3564.8,10.29259321]
[1762858811547,0.4399,3564.9,3564.8,8.70729321]
[1762858811861,0.4399,3564.9,3564.8,7.1270178]
[1762858812179,0.01,3564.9,3564.8,7.5974178]
[1762858812561,0.01,3564.9,3564.8,8.2424178]
[1762858812731,0.01,3564.9,3564.8,8.7123178]
[1762858812929,0.01,3564.9,3564.8,11.12379765]
[1762858813365,0.01,3564.9,3564.8,10.18349765]
[1762858813560,0.01,3564.9,3564.8,10.65389765]
[1762858813962,0.01,3564.9,3564.8,11.12379765]
[1762858814357,0.4399,3564.9,3564.8,10.18349765]
[1762858814670,0.01,3564.9,3564.8,10.18349765]
[1762858814859,0.012,3564.9,3564.8,10.65389765]
[1762858815063,0.4419,3564.9,3564.8,9.53849765]
[1762858815262,0.4419,3564.9,3564.8,8.27878565]
[1762858815263,0.94,3564.9,3564.8,8.27878565]
[1762858817071,0.4419,3564.9,3564.8,8.27878565]
[1762858818892,0.94,3564.9,3564.8,8.27878565]
[1762858819803,0.94,3564.9,3564.8,0.4988]
[1762858820418,0.94,3564.9,3564.8,0.904304]
[1762858820710,0.94,3564.9,3564.2,3.41750734]
[1762858820711,0.94,3564.9,3564.2,6.22313001]
[1762858820911,0.4988,3564.8,3564.6,0.405504]
[1762858821109,0.4988,3564.8,3564.7,0.84279724]
[1762858821420,0.9287,3564.8,3564.5,0.405504]
[1762858821719,0.9287,3564.8,3564.6,0.405504]
[1762858821875,0.012,3564.9,3564.3,0.405504]
[1762858822078,0.4299,3564.6,3564.5,3.21094655]
[1762858822388,0.4299,3564.6,3564.5,6.62845389]
[1762858822592,0.5101,3564.9,3564.8,0.405504]
[1762858823108,0.9406,3564.9,3564.6,0.405504]
[1762858823313,0.5101,3564.9,3564.6,0.405504]
[1762858823510,0.4812,3564.7,3564.6,0.405504]
[1762858823879,0.9285,3564.7,3564.6,0.405504]
[1762858824091,0.9277,3564.7,3564.6,0.405504]
[1762858825433,0.9277,3564.7,3564.5,0.405504]
[1762858825592,0.4944,3564.6,3564.5,0.405504]
[1762858825794,0.9278,3564.6,3564.5,0.405504]
[1762858828234,3.73322626,3564.6,3564.0,2.80578843]
[1762858828396,0.4944,3564.5,3564.0,2.80578751]
[1762858828591,0.4944,3564.5,3564.1,2.80569489]
[1762858828790,0.4944,3564.5,3564.2,0.405504]
[1762858829292,0.4334,3564.3,3564.2,3.21118269]
[1762858829494,0.4334,3564.3,3564.2,0.405504]
[1762858830024,0.9272,3564.3,3564.2,0.405504]
[1762858830606,0.9272,3564.3,3564.0,3.41750734]
[1762858830927,0.4944,3564.2,3564.1,0.405504]
[1762858831131,0.4944,3564.2,3564.1,4.1293036]
[1762858831341,0.9278,3564.2,3564.1,4.1293036]
[1762858832958,0.9278,3564.2,3564.0,3.21132854]
[1762858833258,0.4338,3564.1,3564.0,0.405504]
[1762858833478,0.9272,3564.1,3564.0,0.405504]
[1762858834421,0.4934,3564.1,3564.0,0.405504]
[1762858834662,0.9278,3564.1,3563.9,0.001]
[1762858834958,0.4928,3564.0,3563.9,0.001]
[1762858835176,0.9277,3564.0,3563.9,0.001]
[1762858835723,0.4349,3564.3,3564.0,3.21129431]
[1762858835964,0.645,3564.2,3564.1,4.1293036]
[1762858836426,0.4334,3564.2,3564.1,6.93506101]
[1762858836625,0.645,3564.3,3564.2,0.405504]
[1762858836854,0.645,3564.4,3564.3,3.21104937]
[1762858837023,0.645,3564.4,3564.3,4.1293036]
[1762858837423,0.645,3564.4,3564.3,7.39060357]
[1762858837847,1.139,3564.4,3564.3,4.1293036]
[1762858838448,1.139,3564.4,3564.3,6.93490357]
[1762858839023,1.139,3564.4,3564.3,4.1293036]
[1762858839859,1.139,3564.4,3564.3,6.93490357]
[1762858840228,0.645,3564.4,3564.3,6.93490357]
[1762858841166,0.645,3564.4,3564.3,4.1293036]
[1762858841558,0.645,3564.4,3564.3,6.93490357]
[1762858842643,0.645,3564.4,3564.3,7.39060357]
[1762858843263,0.645,3564.4,3564.3,4.5850036]
[1762858843566,0.645,3564.4,3564.3,4.1293036]
[1762858844161,0.645,3564.4,3564.3,6.93490357]
[1762858844859,0.645,3564.4,3564.3,7.39060357]
[1762858845851,0.012,3564.9,3564.5,2.80539513]
[1762858846045,0.5064,3564.9,3564.7,3.7237996]
[1762858846245,0.645,3564.8,3564.7,4.1293036]
[1762858846656,0.645,3564.8,3564.7,0.405504]
[1762858846856,1.0784,3564.8,3564.7,0.405504]
[1762858847858,1.5722,3564.8,3564.7,0.405504]
[1762858848293,1.5714,3564.8,3564.7,0.405504]
[1762858849491,1.5734,3564.8,3564.7,0.405504]
[1762858851159,1.0796,3564.8,3564.7,3.21078915]
[1762858852382,0.002,3564.8,3564.7,8.41138567]
[1762858852696,0.002,3564.8,3564.7,13.86589727]
[1762858853798,0.002,3564.8,3564.7,14.50989727]
[1762858859523,0.002,3564.8,3564.7,14.03889727]
[1762858859830,0.002,3564.8,3564.7,14.53009727]
[1762858860220,0.002,3564.8,3564.7,7.08249807]
[1762858860424,0.002,3564.8,3564.7,10.31509767]
[1762858860622,0.002,3564.8,3564.7,10.80629767]
[1762858860998,0.002,3564.8,3564.7,14.53009727]
[1762858861394,0.002,3564.8,3564.7,9.21539767]
[1762858861632,0.002,3564.8,3564.7,9.68249767]
[1762858861837,0.002,3564.8,3564.7,10.17369767]
[1762858862141,0.002,3564.8,3564.7,9.68249767]
[1762858862845,0.002,3564.8,3564.7,13.89749727]
[1762858867348,0.002,3564.8,3564.7,8.66140075]
[1762858867654,0.002,3564.8,3564.7,8.19430075]
[1762858868518,0.4672,3564.8,3564.7,8.19430075]
[1762858869855,0.9455,3564.8,3564.7,8.19430075]
[1762858870174,0.9455,3564.8,3564.7,3.21078915]
[1762858870175,0.9425,3564.8,3564.7,3.21078915]
[1762858870353,0.4672,3564.8,3564.7,3.21078915]
[1762858870526,0.002,3564.8,3564.7,3.21078915]
[1762858871028,0.002,3564.8,3564.7,3.67788915]
[1762858871727,0.002,3564.8,3564.7,4.74781607]
[1762858872358,0.0012,3564.8,3564.7,4.74781607]
[1762858872542,0.0012,3564.8,3564.7,5.23901607]
[1762858872928,0.0012,3564.8,3564.7,4.74781607]
[1762858873120,0.0012,3564.8,3564.7,10.86652767]
[1762858879141,0.0012,3564.8,3564.7,7.14272807]
[1762858879342,0.0012,3564.8,3564.7,14.59032727]
[1762858888392,0.0012,3564.8,3564.7,14.09912727]
[1762858888886,0.4856,3564.8,3564.7,9.90722767]
[1762858889294,0.0012,3564.8,3564.7,9.90722767]
[1762858889474,0.0012,3564.8,3564.7,10.39802767]
[1762858890691,0.0012,3564.8,3564.7,10.87592767]
[1762858890868,0.0012,3564.8,3564.7,10.56303441]
[1762858892463,0.0012,3564.8,3564.7,10.08513441]
[1762858892669,0.0012,3564.8,3564.7,9.59433441]
[1762858893070,0.0012,3564.8,3564.7,10.08513441]
[1762858896298,0.0004,3564.8,3564.7,10.08513441]
[1762858896792,0.0004,3564.8,3564.7,10.56303441]
[1762858898763,1e-08,3564.9,3564.8,4.96122246]
[1762858898968,1e-08,3564.9,3564.8,6.77606395]
[1762858900328,0.002,3565.2,3565.1,4.4701864]
[1762858900529,0.01,3565.9,3565.4,0.405504]
[1762858900680,0.01,3565.9,3565.5,9.01457806]
[1762858900885,0.01,3565.9,3565.5,10.65076067]
[1762858901517,0.01,3565.9,3565.5,11.12866067]
[1762858901684,0.002,3565.7,3565.5,11.12866067]
[1762858903377,0.002,3565.7,3565.5,11.24098188]
[1762858903616,0.01,3565.9,3565.8,4.46963576]
[1762858903813,0.01,3565.9,3565.8,9.0143421]
[1762858904017,0.01,3565.9,3565.8,11.1772331]
[1762858905289,0.1867,3566.7,3566.6,3.20929472]
[1762858905586,0.4899,3566.8,3566.7,3.20921611]
[1762858905914,0.01,3566.9,3566.8,3.2091375]
[1762858906222,0.01,3566.9,3566.8,7.87975584]
[1762858906435,0.01,3566.9,3566.8,9.18736384]
[1762858906624,0.4491,3566.9,3566.8,9.18736384]
[1762858907833,0.01,3566.9,3566.8,9.18736384]
[1762858908128,0.4486,3566.9,3566.8,9.18736384]
[1762858908898,0.01,3566.9,3566.8,9.18736384]
[1762858909523,0.01,3566.9,3566.8,9.67816384]
[1762858912332,0.01,3566.9,3566.8,10.15606384]
[1762858913410,0.01,3566.9,3566.8,9.67816384]
[1762858913832,0.9489,3566.9,3566.8,9.83036384]
[1762858914036,0.9489,3566.9,3566.8,10.32026384]
[1762858914238,0.9489,3566.9,3566.8,9.67726384]
[1762858914437,0.9489,3566.9,3566.8,10.32026384]
[1762858915105,0.4594,3566.9,3566.8,10.32026384]
[1762858915640,0.01,3566.9,3566.8,10.32026384]
[1762858916248,0.01,3566.9,3566.8,10.16336384]
[1762858916544,0.01,3567.9,3567.8,3.20835169]
[1762858916747,0.01,3567.9,3567.8,9.00767003]
[1762858917226,0.4686,3567.9,3567.8,8.99847003]
[1762858918006,1.1321,3567.9,3567.8,5.55262234]
[1762858918228,0.01,3567.9,3567.8,8.84117003]
[1762858918406,0.01,3567.9,3567.8,10.06988623]
[1762858918607,0.4684,3567.9,3567.8,9.58418623]
[1762858918804,0.01,3567.9,3567.8,9.58418623]
[1762858919141,0.01,3567.9,3567.8,10.06988623]
[1762858919447,0.01,3567.9,3567.8,9.58418623]
[1762858919662,0.01,3567.9,3567.8,10.06988623]
[1762858919867,0.4767,3568.5,3568.4,3.20788041]
[1762858920027,0.4767,3568.5,3568.4,7.87849875]
[1762858920222,0.4767,3568.5,3568.4,9.01089557]
[1762858920223,0.4584,3568.5,3568.4,9.01089557]
[1762858920428,0.4584,3568.5,3568.4,9.48759557]
[1762858922054,0.01,3568.9,3568.8,3.20756631]
[1762858922233,0.01,3568.9,3568.8,6.61847265]
[1762858922430,0.4759,3568.9,3568.8,6.61847265]
[1762858922829,0.9443,3568.9,3568.8,6.61847265]
[1762858923052,0.4759,3568.9,3568.8,6.61847265]
[1762858923243,0.9443,3568.9,3568.8,7.56053543]
[1762858924289,0.9443,3568.9,3568.8,6.61847265]
[1762858925286,0.9443,3568.9,3568.2,6.21343229]
[1762858925572,0.4767,3568.8,3568.2,4.25278828]
[1762858925728,0.4577,3568.3,3568.2,0.84188194]
[1762858926133,0.9342,3568.3,3568.2,2.80253349]
[1762858926364,0.9342,3568.3,3567.9,0.405504]
[1762858926573,0.4767,3568.2,3568.0,2.80262657]
[1762858926867,0.4659,3568.0,3567.9,7.47338747]
[1762858927055,0.4659,3568.0,3567.9,7.87889147]
[1762858927254,0.9396,3568.0,3567.9,7.87889147]
[1762858928168,0.4659,3568.0,3567.9,7.87889147]
[1762858928739,0.9396,3568.0,3567.9,7.87889147]
[1762858930468,0.4659,3568.0,3567.9,9.05903463]
[1762858930974,0.4659,3568.0,3567.9,9.90095673]
[1762858931177,0.4767,3568.7,3568.3,0.405504]
[1762858931339,0.4767,3568.7,3568.6,3.20765777]
[1762858931978,0.9397,3568.7,3568.6,3.20765777]
[1762858932144,0.9397,3568.7,3568.6,3.20772335]
[1762858936191,0.463,3568.7,3568.6,3.20772335]
[1762858937498,0.9395,3568.7,3568.6,3.20772335]
[1762858938057,0.9395,3568.7,3568.6,0.405504]
[1762858940000,0.9395,3568.7,3568.6,3.20772335]
[1762858940379,0.9395,3568.7,3568.6,0.405504]
[1762858941004,0.9395,3568.7,3568.6,3.20772335]
[1762858941181,0.9395,3568.7,3568.6,0.405504]
[1762858942373,3.74164822,3568.7,3568.3,0.001]
[1762858942680,0.0048,3568.4,3568.3,0.001]
[1762858943186,3.78387641,3568.4,3568.3,0.001]
[1762858943508,0.9815,3568.4,3568.3,0.001]
[1762858943710,3.78387641,3568.4,3568.3,0.001]
[1762858944318,3.78307641,3568.4,3568.3,0.001]
[1762858945635,3.78307641,3568.4,3567.9,0.001]
[1762858945636,0.5,3568.0,3567.9,0.001]
[1762858945837,1.1013,3568.0,3567.9,0.001]
[1762858946136,1.5513,3568.0,3567.9,0.001]
[1762858953521,1.1013,3568.0,3567.9,0.001]
[1762858953725,1.5513,3568.0,3567.9,0.001]
[1762858956314,1.5513,3568.0,3567.9,0.406504]
[1762858959336,4.35399058,3568.0,3567.9,0.001]
[1762858959694,8.57013532,3568.0,3567.9,0.001]
[1762858959852,4.85399058,3568.0,3567.9,0.001]
[1762858960898,1.5513,3568.0,3567.9,0.001]
[1762858961051,4.35399058,3568.0,3567.9,0.001]
[1762858962687,4.85399058,3568.0,3567.9,0.001]
[1762858963082,2.0513,3568.0,3567.9,0.001]
[1762858963498,4.35399058,3568.0,3567.9,0.001]
[1762858963688,1.5513,3568.0,3567.9,0.001]
[1762858963902,4.35399058,3568.0,3567.9,0.001]
[1762858965906,4.85399058,3568.0,3567.9,0.001]
[1762858968396,4.85319058,3568.0,3567.9,0.001]
[1762858968598,8.56933532,3568.0,3567.9,0.001]
[1762858969269,0.44161466,3568.0,3567.9,0.9629]
[1762858969505,0.002,3568.7,3568.0,1.259712]
[1762858969715,0.002,3568.7,3568.6,7.38926809]
[1762858969878,0.002,3568.7,3568.6,3.67312335]
[1762858970216,0.002,3568.7,3568.1,0.63442607]
[1762858970217,0.9393,3568.7,3568.1,0.63442607]
[1762858970368,0.4873,3568.2,3567.9,0.001]
[1762858970710,0.4873,3568.2,3568.1,0.405504]
[1762858970908,0.4873,3568.2,3568.1,0.51777382]
[1762858971214,0.4873,3568.2,3568.0,0.405504]
[1762858971600,0.644,3568.4,3567.9,0.406504]
[1762858971798,0.4873,3568.1,3567.9,0.406504]
[1762858972829,0.002,3568.7,3567.9,0.001]
[1762858973106,0.4873,3568.0,3567.9,0.001]
[1762858973311,1.5813,3568.0,3567.9,0.001]
[1762858973516,1.1313,3568.0,3567.9,0.001]
[1762858974787,1.5813,3568.0,3567.9,0.001]
[1762858974986,2.07291466,3568.0,3567.9,0.001]
[1762858975713,4.87560524,3568.0,3567.9,0.001]
[1762858980026,1.62291466,3568.0,3567.9,0.001]
[1762858980322,1.1313,3568.0,3567.9,0.001]
[1762858980504,4.87600524,3568.0,3567.9,0.001]
[1762858982294,2.07331466,3568.0,3567.9,0.001]
[1762858982484,4.87600524,3568.0,3567.9,0.001]
[1762858983409,8.59214998,3568.0,3567.9,0.001]
[1762858984386,9.85186198,3568.0,3567.9,0.001]
[1762858984987,6.13571724,3568.0,3567.9,0.001]
[1762858985404,9.85186198,3568.0,3567.9,0.001]
[1762858987001,6.13571724,3568.0,3567.9,0.001]
[1762858991944,9.85186198,3568.0,3567.9,0.001]
[1762858992237,9.85106198,3568.0,3567.9,0.001]
[1762858994943,9.85306198,3568.0,3567.9,0.001]
[1762858997209,6.13691724,3568.0,3567.9,0.001]
[1762858997926,0.49361466,3568.0,3567.9,0.001]
[1762858998134,0.646,3568.0,3567.9,0.912]
[1762858998629,0.646,3568.0,3567.9,0.001]
[1762858998630,3.44869058,3568.0,3567.9,0.001]
[1762858998968,0.646,3568.0,3567.9,0.912]
[1762858999566,0.646,3568.0,3567.9,1.68899889]
[1762858999925,0.646,3568.0,3567.9,4.49176802]
[1762859001357,0.646,3568.0,3567.9,8.20791276]
[1762859001873,0.002,3568.0,3567.9,8.20791276]
[1762859002465,0.002,3568.0,3567.9,8.85191276]
[1762859004665,0.002,3568.0,3567.9,10.11162476]
[1762859008653,0.002,3568.0,3567.9,14.4717695]
[1762859008980,0.002,3568.2,3568.1,3.20811603]
[1762859009161,0.002,3568.2,3568.1,8.87275565]
[1762859009377,0.002,3568.2,3568.1,9.33555565]
[1762859010936,0.002,3568.2,3568.1,9.44779366]
[1762859012912,0.002,3568.2,3568.1,9.13558628]
[1762859013191,0.002,3568.2,3568.1,10.39529828]
[1762859013656,0.002,3568.4,3568.3,7.87160831]
[1762859013845,0.002,3568.4,3568.3,10.76488363]
[1762859014296,0.002,3568.4,3568.3,10.87711534]
[1762859016172,0.0012,3568.4,3568.3,10.87711534]
[1762859023676,0.0012,3568.4,3568.3,10.76488363]
[1762859030403,0.0012,3568.4,3568.3,10.76588363]
[1762859032109,0.0012,3568.4,3568.3,7.36194627]
[1762859032433,0.0012,3568.4,3568.3,10.76588363]
[1762859033142,0.0012,3568.4,3568.3,10.30308363]
[1762859033449,0.0012,3568.4,3568.3,4.52986695]
[1762859033929,0.0012,3568.4,3568.3,4.93537095]
[1762859034338,0.4751,3568.4,3568.3,4.46867095]
[1762859035260,0.0012,3568.4,3568.3,4.46867095]
[1762859036640,0.463,3568.4,3568.3,4.46867095]
[1762859037020,0.0012,3568.4,3568.3,4.46867095]
[1762859037220,0.0012,3568.4,3568.3,5.44607095]
[1762859038053,0.0012,3568.4,3568.3,4.96497095]
[1762859040271,0.0004,3568.4,3568.3,4.96497095]
[1762859042357,0.0004,3568.4,3568.3,6.66023298]
[1762859042856,0.0004,3568.4,3568.3,7.30323298]
[1762859043561,0.0004,3568.4,3568.3,7.41545871]
[1762859047889,0.0004,3568.4,3568.3,6.83363298]
[1762859048190,0.0004,3568.4,3568.3,7.30073298]
[1762859048786,0.002,3568.6,3568.5,3.20780188]
[1762859049074,0.002,3568.8,3568.7,7.87129419]
[1762859049273,0.002,3568.8,3568.7,9.00809419]
[1762859049477,0.002,3568.8,3568.7,9.47519419]
[1762859049680,0.4521,3570.4,3569.8,3.20678138]
[1762859049867,0.6516,3570.8,3569.8,9.00723074]
[1762859050076,0.6516,3570.8,3569.8,10.66514054]
[1762859050546,0.1818,3571.4,3570.8,0.405504]
[1762859050741,0.6608,3570.9,3570.8,0.405504]
[1762859050947,1.1076,3570.9,3570.3,0.405504]
[1762859051182,0.4566,3570.8,3570.5,0.405504]
[1762859051374,0.4566,3570.8,3570.6,2.80064586]
[1762859051540,0.4566,3570.8,3570.3,2.80087902]
[1762859051541,0.0092,3570.9,3570.8,0.405504]
[1762859051743,0.0092,3570.9,3570.8,3.20599688]
[1762859051944,1.1075,3570.9,3570.8,0.405504]
[1762859052776,1.1075,3570.9,3570.5,3.20622302]
[1762859052960,0.4566,3570.8,3570.6,2.80064516]
[1762859053279,0.4521,3570.8,3570.7,0.405504]
[1762859053683,0.8989,3570.8,3570.7,0.405504]
[1762859053884,0.8989,3570.8,3570.7,3.20607531]
[1762859054282,0.8989,3570.8,3570.7,0.405504]
[1762859054663,0.4468,3570.8,3570.7,3.20607531]
[1762859054992,0.4468,3570.8,3570.7,0.405504]
[1762859055196,0.8988,3570.8,3570.7,3.20607531]
[1762859055372,0.8988,3570.8,3570.7,0.405504]
[1762859055567,0.8988,3570.8,3570.7,3.20607531]
[1762859055790,0.8988,3570.8,3570.7,0.405504]
[1762859056994,0.2087,3570.9,3570.7,0.405504]
[1762859057199,0.4566,3570.8,3570.7,0.405504]
[1762859058097,0.0045,3570.8,3570.7,0.405504]
[1762859058798,0.4566,3570.8,3570.7,0.405504]
[1762859059201,0.4566,3570.8,3570.7,3.20607531]
[1762859059793,0.4566,3570.8,3570.7,0.405504]
[1762859061262,0.0045,3570.8,3570.7,3.20607531]
[1762859061662,0.4566,3570.8,3570.7,0.405504]
[1762859061862,0.0045,3570.8,3570.7,3.20607531]
[1762859062062,0.0092,3570.9,3570.8,3.20599688]
[1762859062301,0.0092,3570.9,3570.8,3.69979688]
[1762859062796,0.0092,3570.9,3570.8,4.16689688]
[1762859063101,0.0092,3570.9,3570.8,3.69979688]
[1762859063464,0.0092,3570.9,3570.8,4.16689688]
[1762859063664,0.0092,3570.9,3570.8,4.83563512]
[1762859064088,0.0092,3570.9,3570.8,5.47963512]
[1762859064288,0.0084,3570.9,3570.8,5.47963512]
[1762859065690,0.0084,3570.9,3570.8,5.94413512]
[1762859065867,0.0104,3570.9,3570.8,7.20384712]
[1762859067287,0.0104,3570.9,3570.8,6.73934712]
[1762859068210,0.0104,3570.9,3570.8,7.20384712]
[1762859071011,0.0104,3570.9,3570.8,6.73934712]
[1762859072015,0.6479,3570.9,3570.8,3.20599688]
[1762859072171,1.1083,3570.9,3570.6,3.40393736]
[1762859072371,0.4553,3570.7,3570.6,4.06036175]
[1762859072603,0.4553,3570.7,3570.3,3.40393736]
[1762859072805,0.4553,3570.4,3570.3,6.20478267]
[1762859073105,0.4553,3570.4,3570.3,7.86999867]
[1762859073316,0.4604,3570.6,3570.5,3.20623218]
[1762859073487,0.1926,3570.9,3570.8,0.405504]
[1762859073674,0.6658,3570.9,3570.7,0.405504]
[1762859073870,0.4427,3570.8,3570.7,3.20607531]
[1762859074190,0.9155,3570.8,3570.7,3.20607531]
[1762859074672,0.4427,3570.8,3570.7,3.20607531]
[1762859074873,0.9159,3570.8,3570.7,0.405504]
[1762859075069,0.9159,3570.8,3570.7,3.20607531]
[1762859075271,0.4427,3570.8,3570.7,6.91579955]
[1762859075475,0.9155,3570.8,3570.7,6.91579955]
[1762859075676,0.0104,3570.9,3570.8,3.20599688]
[1762859075874,0.0104,3570.9,3570.8,3.70159688]
[1762859076109,0.0104,3570.9,3570.8,6.04690424]
[1762859076516,0.0104,3570.9,3570.8,6.51140424]
[1762859076673,0.0104,3570.9,3570.8,10.22112848]
[1762859081336,0.002,3571.3,3570.8,10.22112848]
[1762859081337,0.002,3571.3,3571.2,3.20568321]
[1762859081544,0.002,3571.3,3571.2,13.75102466]
[1762859081702,0.002,3571.3,3571.2,14.21552466]
[1762859084685,0.002,3571.3,3571.2,14.58837643]
[1762859085329,0.01,3571.9,3571.2,14.58837643]
[1762859085330,0.01,3571.9,3571.8,4.46492483]
[1762859085525,0.01,3571.9,3571.8,13.02397331]
[1762859085694,0.01,3571.9,3571.8,15.07085047]
[1762859086107,0.01,3571.9,3571.8,15.54405047]
[1762859086532,1e-08,3571.9,3571.8,15.54405047]
[1762859088094,0.00120001,3572.1,3572.0,2.79955207]
[1762859088290,0.00120001,3572.1,3572.0,12.37981655]
[1762859088517,0.00120001,3572.1,3572.0,14.804648]
[1762859088705,0.01,3572.9,3572.8,3.20442921]
[1762859088919,0.01,3572.9,3572.8,9.31346545]
[1762859089450,0.4653,3572.9,3572.8,9.29106545]
[1762859089789,0.4653,3572.9,3572.8,5.58134121]
[1762859089993,0.01,3572.9,3572.8,7.76836145]
[1762859090420,0.01,3572.9,3572.8,13.50033292]
[1762859090930,0.01,3572.9,3572.8,13.96483292]
[1762859092829,0.01,3572.9,3572.8,13.50033292]
[1762859093523,0.01,3572.9,3572.8,13.96483292]
[1762859094406,0.01,3572.9,3572.8,14.43803292]
[1762859096930,0.01,3573.9,3573.8,3.20364603]
[1762859097136,0.01,3573.9,3573.8,6.91337027]
[1762859097137,0.2014,3573.9,3573.8,6.91337027]
[1762859097332,1.1333,3573.9,3573.8,8.17308227]
[1762859097630,1.1333,3573.9,3573.8,6.91337027]
[1762859098132,0.462,3573.9,3573.8,6.91337027]
[1762859098295,0.462,3573.9,3573.8,8.17308227]
[1762859098543,0.462,3573.9,3573.8,11.88280651]
[1762859098762,0.01,3573.9,3573.8,13.09051803]
[1762859098975,0.01,3573.9,3573.8,13.55591803]
[1762859099946,0.01,3573.9,3573.8,14.04071803]
[1762859100146,0.01,3573.9,3573.8,13.55591803]
[1762859100346,0.01,3573.9,3573.8,14.04071803]
[1762859100658,0.01,3573.9,3573.8,13.55591803]
[1762859100841,0.2088,3574.9,3574.8,3.20286329]
[1762859101046,1.1257,3574.9,3574.8,6.91258753]
[1762859101378,0.01,3574.9,3574.8,6.91258753]
[1762859101579,0.01,3574.9,3574.8,11.08771177]
[1762859101879,0.01,3574.9,3574.8,11.88202377]
[1762859102045,0.01,3574.9,3574.8,13.93305821]
[1762859102285,0.01,3574.9,3574.8,14.41785821]
[1762859103029,0.01,3574.9,3574.8,13.46765821]
[1762859103189,0.01,3574.9,3574.8,13.93305821]
[1762859103384,0.01,3574.9,3574.8,15.06485821]
[1762859103589,0.01,3574.9,3574.8,14.58005821]